bitfinex/quotes_BTCUSD_20250602
["timestamp","ask_amount","ask_price","bid_price","bid_amount"]
[1748865068879,0.45594432,104150.0,104140.0,0.00897933]
[1748865069091,0.86150015,104150.0,104140.0,0.00897933]
[1748865070123,0.83245583,104150.0,104140.0,0.00897933]
[1748865070353,0.92496705,104150.0,104140.0,0.00897933]
[1748865070555,0.83245583,104150.0,104140.0,0.00897933]
[1748865072725,0.92831013,104150.0,104140.0,0.00897933]
[1748865072939,0.63003013,104150.0,104140.0,0.00897933]
[1748865073152,0.92831013,104150.0,104140.0,0.00897933]
[1748865073563,0.53751013,104150.0,104140.0,0.00897933]
[1748865073764,1.02074135,104150.0,104140.0,0.00897933]
[1748865074381,0.63002135,104150.0,104140.0,0.00897933]
[1748865074592,1.02082135,104150.0,104140.0,0.00897933]
[1748865075500,0.22446552,104150.0,104140.0,0.00897933]
[1748865075700,0.92835013,104150.0,104140.0,0.00897933]
[1748865076541,0.93795083,104150.0,104140.0,0.00897933]
[1748865076747,0.92835013,104150.0,104140.0,0.00897933]
[1748865077110,0.95781428,104150.0,104140.0,0.00897933]
[1748865077705,0.95805428,104150.0,104140.0,0.00897933]
[1748865077903,1.0505655,104150.0,104140.0,0.00897933]
[1748865078311,1.06976746,104150.0,104140.0,0.00897933]
[1748865078542,1.42896997,104150.0,104140.0,0.00897933]
[1748865078740,7.07655716,104150.0,104140.0,0.00897933]
[1748865079185,6.88452644,104150.0,104140.0,0.00897933]
[1748865079395,6.45776764,104150.0,104140.0,0.00897933]
[1748865079592,6.46736899,104150.0,104140.0,0.00897933]
[1748865079779,6.66339971,104150.0,104140.0,0.00997933]
[1748865080442,6.66039971,104150.0,104140.0,0.00997933]
[1748865080649,6.48097052,104150.0,104140.0,0.00997933]
[1748865080865,6.67300124,104150.0,104140.0,0.00997933]
[1748865083149,6.46140718,104150.0,104140.0,0.00997933]
[1748865083549,6.47100834,104150.0,104140.0,0.00997933]
[1748865084165,6.67264041,104150.0,104140.0,0.00997933]
[1748865084397,6.48060969,104150.0,104140.0,0.00997933]
[1748865084810,6.49021113,104150.0,104140.0,0.00997933]
[1748865085223,6.48061043,104150.0,104140.0,0.00997933]
[1748865085432,6.47100899,104150.0,104140.0,0.00997933]
[1748865086404,6.46140764,104150.0,104140.0,0.00997933]
[1748865086607,6.47100899,104150.0,104140.0,0.00997933]
[1748865086808,0.0165,104120.0,104100.0,0.0307]
[1748865086993,1.21135583,104110.0,104090.0,0.0323]
[1748865087203,0.40555583,104100.0,104090.0,0.0163]
[1748865087435,0.40555583,104100.0,104080.0,0.0323]
[1748865087634,0.09264,104090.0,104080.0,0.1281543]
[1748865087882,0.50884345,104090.0,104080.0,0.1281543]
[1748865088098,0.50884345,104090.0,104080.0,0.0163]
[1748865088328,0.50884345,104090.0,104070.0,0.0158]
[1748865088554,0.50884345,104090.0,104070.0,0.0324]
[1748865088760,0.50884345,104090.0,104080.0,0.003]
[1748865088964,0.50884345,104090.0,104070.0,0.0324]
[1748865089173,0.13315898,104090.0,104080.0,0.004]
[1748865089388,0.53871481,104090.0,104080.0,0.004]
[1748865089792,0.53771481,104090.0,104070.0,0.0324]
[1748865090010,0.40555583,104080.0,104070.0,0.0166]
[1748865090215,0.40555583,104080.0,104070.0,0.0216]
[1748865091038,0.1967877,104090.0,104070.0,0.0216]
[1748865091282,0.40655583,104080.0,104070.0,0.0266]
[1748865091654,0.40655583,104080.0,104070.0,0.0216]
[1748865092066,0.70519583,104080.0,104070.0,0.005]
[1748865092259,0.72149583,104080.0,104070.0,0.01]
[1748865092499,0.80696131,104080.0,104070.0,0.01]
[1748865093286,1.22791714,104080.0,104070.0,0.01]
[1748865093496,0.82136131,104080.0,104050.0,0.0327]
[1748865093699,0.40555583,104060.0,104050.0,0.1285543]
[1748865094098,0.40555583,104060.0,104050.0,0.0958543]
[1748865094788,0.3912,104060.0,104050.0,0.1285543]
[1748865094972,0.39124851,104060.0,104050.0,0.1124543]
[1748865095170,0.39224851,104060.0,104050.0,0.1164543]
[1748865095604,0.79880434,104060.0,104050.0,0.1214543]
[1748865095804,0.79880434,104060.0,104050.0,0.009]
[1748865096638,0.79780434,104060.0,104050.0,0.004]
[1748865096855,0.79704434,104060.0,104030.0,0.56395014]
[1748865097054,0.79704434,104060.0,104040.0,0.1272543]
[1748865097255,0.79704434,104060.0,104050.0,0.001]
[1748865097947,0.79704434,104060.0,104040.0,0.1272543]
[1748865098075,0.79804434,104060.0,104050.0,0.003]
[1748865098717,0.79704434,104060.0,104040.0,0.1272543]
[1748865098986,0.79804434,104060.0,104040.0,0.14018844]
[1748865099311,0.79804434,104060.0,104040.0,0.14018606]
[1748865099726,0.79804434,104060.0,104040.0,0.14018624]
[1748865099930,0.79804434,104060.0,104050.0,0.002]
[1748865100142,0.79804434,104060.0,104050.0,0.00893194]
[1748865100555,0.79904434,104060.0,104050.0,0.00893194]
[1748865101205,0.79804434,104060.0,104050.0,0.00893194]
[1748865101431,0.79804434,104060.0,104050.0,0.01193194]
[1748865101662,0.79804434,104060.0,104050.0,0.01393194]
[1748865101872,0.79792434,104060.0,104050.0,0.14188511]
[1748865102262,0.79792434,104060.0,104050.0,0.14188503]
[1748865102499,0.79792434,104060.0,104050.0,0.14188501]
[1748865102687,0.79792434,104060.0,104050.0,0.12598501]
[1748865103238,0.00104851,104060.0,104050.0,0.50579408]
[1748865103449,0.00104851,104060.0,104050.0,1.12771643]
[1748865103654,0.00104851,104060.0,104050.0,0.72216097]
[1748865103855,0.00104851,104060.0,104050.0,0.72216233]
[1748865104067,0.00104851,104060.0,104050.0,0.69835335]
[1748865104265,0.00104851,104060.0,104050.0,0.6983534]
[1748865104487,0.00104851,104060.0,104050.0,0.49652743]
[1748865104694,0.00104851,104060.0,104050.0,0.48759515]
[1748865104898,0.00104851,104060.0,104050.0,0.4965293]
[1748865105333,0.00104851,104060.0,104050.0,0.49652938]
[1748865105937,0.00104851,104060.0,104050.0,0.49653413]
[1748865106339,0.00104851,104060.0,104050.0,0.49653414]
[1748865106725,0.00104851,104060.0,104050.0,0.49653827]
[1748865107313,0.09380851,104060.0,104050.0,0.4965399]
[1748865107703,0.00104851,104060.0,104050.0,0.4965399]
[1748865107903,0.29852,104070.0,104060.0,0.3717]
[1748865108130,0.39128,104070.0,104060.0,0.46120558]
[1748865108329,0.39128,104070.0,104060.0,0.46120568]
[1748865108529,0.49820707,104080.0,104060.0,0.4612057]
[1748865108741,0.39124,104070.0,104060.0,0.4765057]
[1748865108938,0.39124,104070.0,104060.0,0.52581035]
[1748865109115,0.39124,104070.0,104060.0,0.51051033]
[1748865109521,0.39124,104070.0,104060.0,0.17051034]
[1748865109725,0.3924,104070.0,104060.0,0.1222097]
[1748865110165,0.3924,104070.0,104060.0,0.12220971]
[1748865110825,0.3914,104070.0,104060.0,0.12320971]
[1748865111039,0.79695583,104070.0,104060.0,0.1361079]
[1748865111250,0.79795583,104070.0,104060.0,0.1391079]
[1748865111457,0.79795583,104070.0,104060.0,0.13014535]
[1748865111880,0.79795583,104070.0,104060.0,0.10981685]
[1748865112090,0.3924,104070.0,104060.0,0.10982534]
[1748865112526,0.39296,104070.0,104060.0,0.10982534]
[1748865112952,0.39292,104070.0,104060.0,0.10982534]
[1748865113166,0.001,104070.0,104060.0,0.10982646]
[1748865113382,0.39296,104070.0,104060.0,0.10982646]
[1748865113803,0.39296,104070.0,104060.0,0.10984231]
[1748865114010,0.001,104070.0,104060.0,0.10984231]
[1748865114221,0.39288,104070.0,104060.0,0.10984231]
[1748865114840,0.39296,104070.0,104060.0,0.10984231]
[1748865115051,0.39296,104070.0,104060.0,0.1098432]
[1748865115470,0.50421227,104070.0,104060.0,0.01398897]
[1748865115693,0.91263227,104070.0,104060.0,0.01398903]
[1748865115929,0.91263227,104070.0,104060.0,0.01398909]
[1748865116152,0.91259227,104070.0,104060.0,0.01398909]
[1748865116392,0.83113583,104070.0,104060.0,0.01398909]
[1748865116617,0.83109583,104070.0,104060.0,0.01398956]
[1748865116841,0.83109583,104070.0,104060.0,0.01398957]
[1748865117063,0.83109583,104070.0,104060.0,0.005]
[1748865117282,0.83109583,104070.0,104060.0,0.01399001]
[1748865117511,0.83109583,104070.0,104060.0,0.01399056]
[1748865117780,1.57565166,104070.0,104060.0,0.01399056]
[1748865118015,1.17009583,104070.0,104060.0,0.01399056]
[1748865118464,1.17009583,104070.0,104060.0,0.01399117]
[1748865118904,1.17009583,104070.0,104060.0,0.0139913]
[1748865119127,1.66816288,104070.0,104060.0,0.01399126]
[1748865119359,1.66816288,104070.0,104060.0,0.01399117]
[1748865119856,1.57565166,104070.0,104060.0,0.01399117]
[1748865120513,1.57565166,104070.0,104060.0,0.01399122]
[1748865120931,1.57565166,104070.0,104060.0,0.01399195]
[1748865121183,1.57565166,104070.0,104060.0,0.005]
[1748865121401,1.57565166,104070.0,104060.0,0.01399219]
[1748865121684,1.66816288,104070.0,104060.0,0.01399219]
[1748865121884,1.66816288,104070.0,104060.0,0.01399155]
[1748865122315,1.66816288,104070.0,104060.0,0.01399154]
[1748865122759,1.17009583,104070.0,104060.0,0.01399154]
[1748865122966,1.17009583,104070.0,104060.0,0.01399108]
[1748865123191,1.17009583,104070.0,104060.0,0.0139899]
[1748865123422,1.16965583,104070.0,104060.0,0.01398976]
[1748865124131,0.3727,104070.0,104060.0,0.01398856]
[1748865124351,1.16977583,104070.0,104060.0,0.01398856]
[1748865124566,1.16973583,104070.0,104060.0,0.01398843]
[1748865125195,1.16973583,104070.0,104060.0,0.01398765]
[1748865125406,1.16973583,104070.0,104060.0,0.005]
[1748865126473,0.77825583,104070.0,104060.0,0.01398708]
[1748865126683,0.34,104070.0,104060.0,0.01398708]
[1748865126902,0.73132,104070.0,104060.0,0.01398708]
[1748865127113,0.73132,104070.0,104060.0,0.01398685]
[1748865127347,0.73132,104070.0,104060.0,0.0139866]
[1748865127558,0.73132,104070.0,104060.0,0.005]
[1748865127809,0.73132,104070.0,104060.0,0.01398663]
[1748865128028,0.73132,104070.0,104060.0,0.01398661]
[1748865128957,0.73132,104070.0,104060.0,0.0139872]
[1748865129387,0.73132,104070.0,104060.0,0.01398698]
[1748865129850,1.15217583,104070.0,104060.0,0.01398698]
[1748865130039,0.74662,104070.0,104060.0,0.01398698]
[1748865130293,1.15217583,104070.0,104060.0,0.01398698]
[1748865130488,0.74662,104070.0,104060.0,0.01398763]
[1748865130694,1.15217583,104070.0,104060.0,0.01398763]
[1748865130901,0.76085583,104070.0,104060.0,0.01398749]
[1748865131115,1.15305583,104070.0,104060.0,0.01398749]
[1748865131322,1.15305583,104070.0,104060.0,0.01398732]
[1748865131966,1.15305583,104070.0,104060.0,0.01398788]
[1748865132614,0.76085583,104070.0,104060.0,0.005]
[1748865132848,0.392,104070.0,104060.0,0.12504144]
[1748865133255,0.392,104070.0,104060.0,0.1250414]
[1748865133467,0.392,104070.0,104060.0,0.12504143]
[1748865133899,0.37184857,104080.0,104060.0,0.1160543]
[1748865134117,0.0928,104070.0,104060.0,0.12504183]
[1748865134382,0.0928,104070.0,104060.0,0.12504186]
[1748865134606,0.0928,104070.0,104060.0,0.1160543]
[1748865134835,0.0928,104070.0,104060.0,0.12204181]
[1748865135059,0.0928,104070.0,104060.0,0.10984179]
[1748865135577,0.49835583,104070.0,104060.0,0.10984228]
[1748865136050,0.0928,104070.0,104060.0,0.1008543]
[1748865136294,0.0928,104070.0,104060.0,0.0978543]
[1748865136519,0.0928,104070.0,104060.0,0.10684221]
[1748865136857,0.0928,104070.0,104060.0,0.0978543]
[1748865137089,0.0938,104070.0,104060.0,0.1008543]
[1748865137332,0.0938,104070.0,104060.0,0.10984216]
[1748865137573,0.0938,104070.0,104060.0,0.1008543]
[1748865137797,0.0938,104070.0,104060.0,0.1098422]
[1748865138072,0.0938,104070.0,104060.0,0.10984217]
[1748865138303,0.001,104070.0,104060.0,0.1327543]
[1748865138999,0.001,104070.0,104060.0,0.12604191]
[1748865139253,0.001,104070.0,104060.0,0.1008543]
[1748865139718,0.001,104070.0,104060.0,0.10984198]
[1748865139963,0.001,104070.0,104060.0,0.56163866]
[1748865140205,0.001,104070.0,104060.0,0.86079769]
[1748865140432,0.001,104070.0,104060.0,0.15607738]
[1748865140659,0.001,104070.0,104060.0,0.34827418]
[1748865140888,4.857e-05,104080.0,104060.0,0.15307733]
[1748865141119,0.4210044,104080.0,104070.0,0.0958543]
[1748865141355,0.4210044,104080.0,104070.0,0.10483648]
[1748865141606,0.4210044,104080.0,104070.0,0.10483685]
[1748865141831,0.01544857,104080.0,104070.0,0.10483487]
[1748865142285,0.01544857,104080.0,104070.0,0.0958543]
[1748865142520,0.01544857,104080.0,104070.0,0.10483437]
[1748865142743,0.01644857,104080.0,104070.0,0.10483437]
[1748865143395,0.01544857,104080.0,104070.0,0.10583437]
[1748865143400,0.01544857,104080.0,104070.0,0.10683437]
[1748865144307,0.01544857,104080.0,104070.0,0.10683221]
[1748865144940,0.01544857,104080.0,104070.0,0.10683155]
[1748865145589,0.01544857,104080.0,104070.0,0.0978543]
[1748865145820,0.01544857,104080.0,104070.0,0.10683035]
[1748865146056,0.01544857,104080.0,104070.0,0.10682943]
[1748865146272,4.857e-05,104080.0,104070.0,0.11906245]
[1748865146695,4.857e-05,104080.0,104070.0,0.0978543]
[1748865146935,4.857e-05,104080.0,104070.0,0.3135476]
[1748865147165,4.857e-05,104080.0,104070.0,0.78032952]
[1748865147386,4.857e-05,104080.0,104070.0,0.3465824]
[1748865147614,4.857e-05,104080.0,104070.0,0.15376625]
[1748865147832,0.4218044,104080.0,104070.0,0.0978543]
[1748865148045,0.4384044,104080.0,104070.0,0.10682616]
[1748865148515,0.4384044,104080.0,104070.0,0.10682633]
[1748865148736,0.51212084,104080.0,104070.0,0.01097251]
[1748865148951,0.4384044,104080.0,104070.0,0.01097251]
[1748865149637,0.4384044,104080.0,104070.0,0.01097319]
[1748865149915,0.4384044,104080.0,104070.0,0.01097389]
[1748865151187,0.4384044,104080.0,104070.0,0.01097457]
[1748865151400,0.4384044,104080.0,104070.0,0.002]
[1748865151607,0.4384044,104080.0,104070.0,0.01097567]
[1748865151822,0.4218044,104080.0,104070.0,0.01097567]
[1748865152245,0.01624857,104080.0,104070.0,0.01097567]
[1748865152834,0.01624857,104080.0,104070.0,0.01097634]
[1748865153035,0.01624857,104080.0,104070.0,0.01097813]
[1748865153243,0.01624857,104080.0,104070.0,0.01097811]
[1748865154214,0.01624857,104080.0,104070.0,0.01098113]
[1748865154824,0.4218044,104080.0,104070.0,0.01098113]
[1748865155032,0.4218044,104080.0,104070.0,0.01098456]
[1748865155234,0.4218044,104080.0,104070.0,0.01098464]
[1748865155912,0.4375044,104080.0,104070.0,0.01098454]
[1748865156266,0.4375044,104080.0,104070.0,0.002]
[1748865156468,0.4375044,104080.0,104070.0,0.01098477]
[1748865156688,0.4375044,104080.0,104070.0,0.01098476]
[1748865156920,0.03194857,104080.0,104070.0,0.01098476]
[1748865157065,0.4375044,104080.0,104070.0,0.01098621]
[1748865157281,0.03194857,104080.0,104070.0,0.002]
[1748865157493,0.4056044,104080.0,104070.0,0.01098692]
[1748865157695,0.01614857,104080.0,104070.0,0.01098692]
[1748865157895,0.01614857,104080.0,104070.0,0.002]
[1748865158081,0.01614857,104080.0,104070.0,0.01098689]
[1748865158288,0.01614857,104080.0,104070.0,0.002]
[1748865158528,0.01614857,104080.0,104070.0,0.01098811]
[1748865158865,0.03274857,104080.0,104070.0,0.002]
[1748865159080,0.03274857,104080.0,104070.0,0.01098813]
[1748865159511,0.03274857,104080.0,104070.0,0.002]
[1748865159720,0.03274857,104080.0,104070.0,0.01098885]
[1748865160129,0.4383044,104080.0,104070.0,0.01098885]
[1748865160335,0.4383044,104080.0,104070.0,0.01099109]
[1748865161176,0.4383044,104080.0,104070.0,0.01099161]
[1748865161787,0.4383044,104080.0,104070.0,0.01099162]
[1748865161997,4.857e-05,104080.0,104070.0,0.13754841]
[1748865162205,4.857e-05,104080.0,104070.0,0.10684841]
[1748865162206,0.01594857,104080.0,104070.0,0.10684841]
[1748865162415,0.03174857,104080.0,104070.0,0.10684857]
[1748865162826,0.03174857,104080.0,104070.0,0.10684868]
[1748865163798,0.03174857,104080.0,104070.0,0.0978543]
[1748865164029,0.55308062,104080.0,104070.0,0.01099542]
[1748865164283,0.89308062,104080.0,104070.0,0.01099542]
[1748865164735,0.80008062,104080.0,104070.0,0.01099542]
[1748865165005,0.8703044,104080.0,104070.0,0.01099645]
[1748865165196,0.8703044,104080.0,104070.0,0.002]
[1748865165436,0.8703044,104080.0,104070.0,0.01099815]
[1748865165684,0.8703044,104080.0,104070.0,0.01099816]
[1748865165897,0.8703044,104080.0,104070.0,0.01099699]
[1748865166548,0.96281562,104080.0,104070.0,0.01099699]
[1748865166763,0.96281562,104080.0,104070.0,0.01099719]
[1748865167013,0.8703044,104080.0,104070.0,0.002]
[1748865167263,0.8703044,104080.0,104070.0,0.01099585]
[1748865168175,0.8703044,104080.0,104070.0,0.01099574]
[1748865168584,0.8703044,104080.0,104070.0,0.01099595]
[1748865169018,0.8703044,104080.0,104070.0,0.01099518]
[1748865169803,0.8703044,104080.0,104070.0,0.01099538]
[1748865170285,0.96281562,104080.0,104070.0,0.01099464]
[1748865170788,0.96281562,104080.0,104070.0,0.01099541]
[1748865170999,0.96281562,104080.0,104070.0,0.01099555]
[1748865171426,0.96281562,104080.0,104070.0,0.01099562]
[1748865171637,0.96281562,104080.0,104070.0,0.01099563]
[1748865171862,0.96281562,104080.0,104070.0,0.01099589]
[1748865172080,0.96281562,104080.0,104070.0,0.002]
[1748865172287,0.96281562,104080.0,104070.0,0.01099457]
[1748865172727,0.8703044,104080.0,104070.0,0.01099457]
[1748865174008,0.8703044,104080.0,104070.0,0.002]
[1748865174221,0.46474857,104080.0,104070.0,0.01099401]
[1748865174642,0.8703044,104080.0,104070.0,0.01099401]
[1748865174853,0.8703044,104080.0,104070.0,0.002]
[1748865175056,0.8703044,104080.0,104070.0,0.01099401]
[1748865175286,0.8703044,104080.0,104070.0,0.01099454]
[1748865175908,0.8703044,104080.0,104070.0,0.01099389]
[1748865177038,0.8703044,104080.0,104070.0,0.01099583]
[1748865177797,0.8703044,104080.0,104070.0,0.002]
[1748865178007,0.8703044,104080.0,104070.0,0.01099583]
[1748865178411,0.8703044,104080.0,104070.0,0.002]
[1748865178612,0.8703044,104080.0,104070.0,0.01099583]
[1748865178836,1.1673844,104080.0,104070.0,0.01099583]
[1748865179077,1.1673844,104080.0,104070.0,0.01099539]
[1748865180212,1.1673844,104080.0,104070.0,0.01099511]
[1748865180621,1.1673844,104080.0,104070.0,0.01099512]
[1748865180829,1.1673844,104080.0,104070.0,0.01099509]
[1748865181923,1.1673844,104080.0,104070.0,0.010995]
[1748865182554,1.1673844,104080.0,104070.0,0.01099513]
[1748865183842,1.25989562,104080.0,104070.0,0.01099513]
[1748865184292,1.25989562,104080.0,104070.0,0.01099546]
[1748865184717,1.25989562,104080.0,104070.0,0.001]
[1748865184939,1.25989562,104080.0,104070.0,0.00999548]
[1748865185153,1.26019562,104080.0,104040.0,0.04664085]
[1748865185379,0.77755583,104070.0,104050.0,0.0958543]
[1748865185589,0.77755583,104070.0,104050.0,0.10485021]
[1748865185797,0.42145583,104060.0,104050.0,0.10485021]
[1748865186033,0.42145583,104060.0,104050.0,0.10485026]
[1748865186232,0.77515583,104070.0,104050.0,0.10485026]
[1748865186440,0.0159,104060.0,104050.0,0.10485026]
[1748865186663,0.0159,104060.0,104050.0,0.10484979]
[1748865186873,0.77515583,104070.0,104050.0,0.10484979]
[1748865187116,0.77515583,104070.0,104050.0,0.10684979]
[1748865187332,0.77515583,104070.0,104050.0,0.12199885]
[1748865187541,0.77515583,104070.0,104050.0,0.13719885]
[1748865187764,0.75905583,104070.0,104050.0,0.14830336]
[1748865188042,0.001,104060.0,104050.0,0.15729914]
[1748865188254,0.75905583,104070.0,104050.0,0.15329917]
[1748865188472,0.75905583,104070.0,104050.0,0.15129917]
[1748865188687,0.76005583,104070.0,104050.0,0.15529917]
[1748865188900,0.76005583,104070.0,104050.0,0.15729866]
[1748865189139,0.76005583,104070.0,104050.0,0.15529923]
[1748865189345,0.76005583,104070.0,104050.0,0.14630336]
[1748865189579,0.76005583,104070.0,104050.0,0.15729922]
[1748865189840,0.76005583,104070.0,104050.0,0.1572992]
[1748865190257,0.76005583,104070.0,104050.0,0.15729896]
[1748865190689,0.76005583,104070.0,104050.0,0.15729895]
[1748865190913,0.76005583,104070.0,104050.0,0.15729899]
[1748865191545,0.77525583,104070.0,104050.0,0.13220336]
[1748865191753,0.77525583,104070.0,104050.0,0.12605049]
[1748865191970,0.09228,104060.0,104050.0,0.11085049]
[1748865192185,0.09228,104060.0,104050.0,0.11085236]
[1748865192825,0.10778,104060.0,104050.0,0.10885236]
[1748865193043,0.10778,104060.0,104050.0,0.11085236]
[1748865193469,0.10778,104060.0,104050.0,0.10685236]
[1748865193667,0.10878,104060.0,104050.0,0.11085221]
[1748865194127,0.10878,104060.0,104050.0,0.11085522]
[1748865194616,0.10878,104060.0,104050.0,0.11085519]
[1748865195266,0.10878,104060.0,104050.0,0.11085498]
[1748865196123,0.10878,104060.0,104050.0,0.11085556]
[1748865196546,0.10878,104060.0,104050.0,0.1018543]
[1748865196746,0.10878,104060.0,104050.0,0.11085555]
[1748865196959,0.09328,104060.0,104050.0,0.1018543]
[1748865197187,0.09328,104060.0,104050.0,0.11085555]
[1748865197623,0.09328,104060.0,104050.0,0.11085588]
[1748865197847,0.09328,104060.0,104050.0,0.11085578]
[1748865199226,0.09328,104060.0,104050.0,0.11085669]
[1748865199425,0.09328,104060.0,104050.0,0.1018543]
[1748865199620,0.09328,104060.0,104050.0,0.11085666]
[1748865200299,0.09328,104060.0,104050.0,0.11085736]
[1748865201273,0.09328,104060.0,104050.0,0.11085738]
[1748865201494,0.09328,104060.0,104050.0,0.1018543]
[1748865201708,0.10898,104060.0,104050.0,0.11752412]
[1748865201933,0.10898,104060.0,104050.0,0.1265272]
[1748865202151,0.001,104060.0,104050.0,0.12615738]
[1748865202390,0.001,104060.0,104050.0,0.14175749]
[1748865202597,0.001,104060.0,104050.0,0.12615746]
[1748865203044,0.001,104060.0,104050.0,0.14155746]
[1748865203321,0.001,104060.0,104050.0,0.56405664]
[1748865203521,0.001,104060.0,104050.0,0.63824366]
[1748865203976,0.001,104060.0,104050.0,1.13714918]
[1748865204189,0.001,104060.0,104050.0,1.13714909]
[1748865204409,0.001,104060.0,104050.0,1.1371459]
[1748865204659,0.001,104060.0,104050.0,1.16597684]
[1748865204875,4.857e-05,104080.0,104070.0,0.04664085]
[1748865205099,4.857e-05,104080.0,104070.0,0.16302377]
[1748865205323,4.857e-05,104080.0,104070.0,0.17202155]
[1748865205458,4.857e-05,104080.0,104070.0,0.16302377]
[1748865205668,4.857e-05,104080.0,104070.0,0.17202139]
[1748865206306,4.857e-05,104080.0,104070.0,0.16961958]
[1748865206735,4.857e-05,104080.0,104070.0,0.12297873]
[1748865206736,0.4224044,104080.0,104070.0,0.12297873]
[1748865206923,0.4224044,104080.0,104070.0,0.12297173]
[1748865207126,0.4224044,104080.0,104070.0,0.00899048]
[1748865207334,0.4224044,104080.0,104060.0,0.1945987]
[1748865207540,0.4224044,104080.0,104060.0,0.13015626]
[1748865207739,0.4224044,104080.0,104070.0,0.1277543]
[1748865207740,0.00104857,104080.0,104070.0,0.1277543]
[1748865207941,0.00104857,104080.0,104070.0,0.15610045]
[1748865208173,0.00104857,104080.0,104070.0,0.0958543]
[1748865208371,0.00104857,104080.0,104070.0,0.10484439]
[1748865208576,4.857e-05,104080.0,104070.0,0.10484439]
[1748865209185,4.857e-05,104080.0,104070.0,0.10484105]
[1748865209556,0.00104857,104080.0,104070.0,0.10484105]
[1748865210015,0.01624857,104080.0,104070.0,0.10484105]
[1748865210241,0.01624857,104080.0,104070.0,0.11881516]
[1748865210468,0.00104857,104080.0,104070.0,0.11881516]
[1748865210896,0.00104857,104080.0,104070.0,0.11082841]
[1748865211178,0.00104857,104080.0,104070.0,0.11981263]
[1748865211592,0.00104857,104080.0,104070.0,0.16645275]
[1748865213141,0.00104857,104080.0,104070.0,0.16644888]
[1748865213612,0.00104857,104080.0,104070.0,0.14176926]
[1748865213827,0.00104857,104080.0,104070.0,0.15074888]
[1748865214271,0.00104857,104080.0,104070.0,0.16574814]
[1748865214937,0.00104857,104080.0,104070.0,0.15074737]
[1748865215153,0.00104857,104080.0,104070.0,0.10583264]
[1748865215154,0.01724857,104080.0,104070.0,0.10583264]
[1748865215373,0.4386044,104080.0,104070.0,0.10583272]
[1748865215827,0.4386044,104080.0,104070.0,0.10583284]
[1748865216597,0.4386044,104080.0,104070.0,0.10583316]
[1748865216855,0.4386044,104080.0,104070.0,0.1058328]
[1748865217093,0.4386044,104080.0,104070.0,0.0968543]
[1748865217347,0.4386044,104080.0,104070.0,0.1058328]
[1748865217610,0.4386044,104080.0,104070.0,0.10583314]
[1748865217828,0.4386044,104080.0,104070.0,0.00997884]
[1748865218089,0.4386044,104080.0,104070.0,0.00997887]
[1748865218564,0.4386044,104080.0,104070.0,0.001]
[1748865218832,0.03304857,104080.0,104070.0,0.001]
[1748865219097,0.03304857,104080.0,104070.0,0.0099788]
[1748865219313,0.03304857,104080.0,104070.0,0.00997855]
[1748865220411,0.03304857,104080.0,104070.0,0.00997904]
[1748865220670,0.01724857,104080.0,104070.0,0.00997904]
[1748865221504,0.01724857,104080.0,104070.0,0.00997978]
[1748865221915,0.01724857,104080.0,104070.0,0.001]
[1748865222123,0.01724857,104080.0,104070.0,0.00998019]
[1748865222299,0.01724857,104080.0,104070.0,0.00998008]
[1748865222502,0.01724857,104080.0,104070.0,0.001]
[1748865222712,0.00104857,104080.0,104070.0,0.1241366]
[1748865223094,0.00104857,104080.0,104070.0,0.13807026]
[1748865223960,0.00104857,104080.0,104070.0,0.13807129]
[1748865225176,0.00104857,104080.0,104070.0,0.13807311]
[1748865225503,0.00104857,104080.0,104070.0,0.13807299]
[1748865225705,0.00104857,104080.0,104070.0,0.13807297]
[1748865225928,0.00104857,104080.0,104070.0,0.12909007]
[1748865226197,0.00104857,104080.0,104070.0,0.16712318]
[1748865227768,0.00104857,104080.0,104070.0,0.16712535]
[1748865228265,0.00104857,104080.0,104070.0,0.37765693]
[1748865228502,0.00104857,104080.0,104070.0,0.19446445]
[1748865228735,0.00104857,104080.0,104070.0,0.21243604]
[1748865229240,0.00104857,104080.0,104070.0,0.2124444]
[1748865229885,0.00104857,104080.0,104070.0,0.18547859]
[1748865230085,0.00104857,104080.0,104070.0,0.81444047]
[1748865230238,0.00104857,104080.0,104070.0,0.80243031]
[1748865230445,0.00104857,104080.0,104070.0,0.83900268]
[1748865231053,0.00104857,104080.0,104070.0,0.83901018]
[1748865231247,0.00104857,104080.0,104070.0,0.8204112]
[1748865231456,0.00104857,104080.0,104070.0,1.11763621]
[1748865231655,4.857e-05,104080.0,104070.0,1.11763621]
[1748865231840,4.857e-05,104080.0,104070.0,1.13761699]
[1748865232091,4.857e-05,104080.0,104070.0,1.1296266]
[1748865232297,4.857e-05,104080.0,104070.0,1.13861699]
[1748865232532,4.857e-05,104080.0,104070.0,1.14824001]
[1748865232726,4.857e-05,104080.0,104070.0,0.73307556]
[1748865232960,4.857e-05,104080.0,104070.0,1.13863132]
[1748865233165,4.857e-05,104080.0,104070.0,1.13924482]
[1748865233360,4.857e-05,104080.0,104070.0,1.1116459]
[1748865233741,4.857e-05,104080.0,104070.0,0.70547648]
[1748865233947,4.857e-05,104080.0,104070.0,0.73368917]
[1748865234165,4.857e-05,104080.0,104070.0,0.74268431]
[1748865234726,4.857e-05,104080.0,104070.0,0.74268307]
[1748865234938,4.857e-05,104080.0,104070.0,0.74329657]
[1748865235157,4.857e-05,104080.0,104070.0,0.70463815]
[1748865235695,4.857e-05,104080.0,104070.0,0.69564363]
[1748865235967,4.857e-05,104080.0,104070.0,0.72324131]
[1748865236226,4.857e-05,104080.0,104070.0,0.50223678]
[1748865236431,4.857e-05,104080.0,104070.0,0.51184507]
[1748865236634,4.857e-05,104080.0,104070.0,0.71363103]
[1748865236844,4.857e-05,104080.0,104070.0,0.68603361]
[1748865237055,4.857e-05,104080.0,104070.0,0.71362881]
[1748865237268,4.857e-05,104080.0,104070.0,0.72381257]
[1748865237473,4.857e-05,104080.0,104070.0,0.72319745]
[1748865237924,4.857e-05,104080.0,104070.0,0.76165099]
[1748865238162,4.857e-05,104080.0,104070.0,0.75204245]
[1748865238382,4.857e-05,104080.0,104070.0,0.73344058]
[1748865238597,4.857e-05,104080.0,104070.0,0.723212]
[1748865238853,4.857e-05,104080.0,104070.0,0.49600834]
[1748865239069,0.4383044,104080.0,104070.0,0.16022351]
[1748865239292,0.4383044,104080.0,104070.0,0.12582947]
[1748865239724,0.03274857,104080.0,104070.0,0.12583102]
[1748865240409,4.857e-05,104080.0,104070.0,0.76723244]
[1748865240624,4.857e-05,104080.0,104070.0,0.57842668]
[1748865240839,0.01524857,104080.0,104070.0,0.14037031]
[1748865241049,0.01524857,104080.0,104070.0,0.43733046]
[1748865241258,0.01524857,104080.0,104070.0,0.43733076]
[1748865241712,4.857e-05,104080.0,104070.0,1.04467384]
[1748865241929,4.857e-05,104080.0,104070.0,1.10599987]
[1748865242136,4.857e-05,104080.0,104070.0,1.10599996]
[1748865242354,4.857e-05,104080.0,104070.0,1.10599859]
[1748865242574,4.857e-05,104080.0,104070.0,1.11560627]